bitfinex/quotes_BTCUSD_20250910
["timestamp","ask_amount","ask_price","bid_price","bid_amount"]
[1757520073088,0.099524,113870.0,113860.0,0.71565431]
[1757520073307,0.099524,113870.0,113860.0,0.96937835]
[1757520073520,0.099524,113870.0,113860.0,0.99882835]
[1757520073740,0.099524,113870.0,113860.0,1.39882835]
[1757520074420,0.099524,113870.0,113860.0,1.46735901]
[1757520074843,0.099524,113870.0,113860.0,1.46935901]
[1757520075051,0.099524,113870.0,113860.0,1.46939901]
[1757520075941,0.099524,113870.0,113860.0,1.46949901]
[1757520076164,0.099524,113870.0,113860.0,1.46749901]
[1757520076378,0.099524,113870.0,113860.0,1.46949901]
[1757520076529,0.099524,113870.0,113860.0,1.32225901]
[1757520076736,0.099524,113870.0,113860.0,1.46755342]
[1757520077157,0.099524,113870.0,113860.0,1.46855342]
[1757520077361,0.099524,113870.0,113860.0,1.46655342]
[1757520077767,0.099524,113870.0,113860.0,1.46855342]
[1757520077972,0.099524,113870.0,113860.0,1.55937519]
[1757520079488,0.099524,113870.0,113860.0,1.55737519]
[1757520079702,0.099524,113870.0,113860.0,1.55837519]
[1757520079901,0.099524,113870.0,113860.0,1.55937519]
[1757520080487,0.099524,113870.0,113860.0,1.56137519]
[1757520080686,0.099524,113870.0,113860.0,1.55937519]
[1757520080905,0.099524,113870.0,113860.0,1.55737519]
[1757520081111,0.099524,113870.0,113860.0,1.41113519]
[1757520081316,0.099524,113870.0,113860.0,1.55937519]
[1757520081529,0.099524,113870.0,113860.0,1.55737519]
[1757520082207,0.099524,113870.0,113860.0,1.41013519]
[1757520082414,0.099524,113870.0,113860.0,1.55737519]
[1757520083062,0.099524,113870.0,113860.0,1.55937519]
[1757520083282,0.099524,113870.0,113860.0,1.56137519]
[1757520083487,0.099524,113870.0,113860.0,1.55941519]
[1757520083901,0.099524,113870.0,113860.0,1.56041519]
[1757520084113,0.099524,113870.0,113860.0,1.55841519]
[1757520084334,0.099524,113870.0,113860.0,1.55741519]
[1757520084571,0.099524,113870.0,113860.0,1.55841519]
[1757520084779,0.099524,113870.0,113860.0,1.56041519]
[1757520084965,0.099524,113870.0,113860.0,1.55941519]
[1757520085956,0.099524,113870.0,113860.0,1.56091647]
[1757520086151,0.099524,113870.0,113860.0,1.55741519]
[1757520086384,0.099524,113870.0,113860.0,1.55941519]
[1757520086587,0.099524,113870.0,113860.0,1.56041519]
[1757520086800,0.099524,113870.0,113860.0,1.55841519]
[1757520086974,0.099524,113870.0,113860.0,1.55941519]
[1757520087325,0.099524,113870.0,113860.0,1.55841519]
[1757520087654,0.099524,113870.0,113860.0,1.56041519]
[1757520088497,0.099524,113870.0,113860.0,1.56241519]
[1757520089859,0.099524,113870.0,113860.0,1.55741519]
[1757520090267,0.00014078,113890.0,113880.0,0.72562346]
[1757520090504,0.00014078,113890.0,113880.0,1.13057733]
[1757520090751,0.00014078,113890.0,113880.0,1.15832733]
[1757520090988,0.00014078,113890.0,113880.0,1.55832733]
[1757520091411,0.00014078,113890.0,113880.0,1.55842733]
[1757520093523,0.00014078,113890.0,113880.0,1.56719609]
[1757520094572,0.00114078,113890.0,113880.0,1.56719609]
[1757520096814,0.00114078,113890.0,113880.0,1.56707609]
[1757520097021,0.00114078,113890.0,113880.0,1.56703609]
[1757520101686,0.00114078,113890.0,113880.0,1.90703609]
[1757520101905,0.00014078,113890.0,113880.0,1.90703609]
[1757520102535,0.00014078,113890.0,113880.0,1.90803609]
[1757520102954,0.00014078,113890.0,113880.0,1.90703609]
[1757520103289,0.00014078,113890.0,113880.0,1.90803609]
[1757520106591,0.00014078,113890.0,113880.0,2.11863609]
[1757520106804,0.00014078,113890.0,113880.0,2.11851609]
[1757520107230,0.00014078,113890.0,113880.0,1.97151609]
[1757520107434,0.00014078,113890.0,113880.0,2.11851609]
[1757520112356,0.00014078,113890.0,113880.0,2.19718543]
[1757520117587,0.30711996,113890.0,113880.0,1.00023286]
[1757520117793,0.17772882,113890.0,113880.0,1.06354352]
[1757520117978,0.17574882,113890.0,113880.0,1.06860352]
[1757520118353,0.17574882,113890.0,113880.0,1.09209352]
[1757520118624,0.17574882,113890.0,113880.0,1.1796247]
[1757520119066,0.17772882,113890.0,113880.0,1.1796247]
[1757520119743,0.31248786,113890.0,113880.0,0.30298352]
[1757520119973,0.31028996,113890.0,113880.0,0.30298352]
[1757520120766,0.31028996,113890.0,113880.0,0.21546]
[1757520121369,0.18089882,113890.0,113880.0,0.21546]
[1757520121579,0.30711996,113890.0,113880.0,0.21546]
[1757520121938,0.30711996,113890.0,113880.0,0.256304]
[1757520122147,0.31028996,113890.0,113880.0,0.256304]
[1757520124314,0.31128996,113890.0,113880.0,0.256304]
[1757520125352,0.18189882,113890.0,113880.0,0.21446]
[1757520125650,0.31128996,113890.0,113880.0,0.21446]
[1757520128378,0.31128996,113890.0,113880.0,0.06746]
[1757520128633,0.31128996,113890.0,113880.0,0.21462]
[1757520130193,0.18189882,113890.0,113880.0,0.21462]
[1757520130379,0.31128996,113890.0,113880.0,0.25638]
[1757520130804,0.17872882,113890.0,113880.0,0.34390352]
[1757520131022,0.17872882,113890.0,113880.0,0.34896352]
[1757520131223,0.17674882,113890.0,113880.0,0.37245352]
[1757520132092,0.17872882,113890.0,113880.0,0.37245352]
[1757520132710,0.30811996,113890.0,113880.0,0.37245352]
[1757520132912,0.17674882,113890.0,113880.0,0.52245352]
[1757520133319,0.00114078,113890.0,113880.0,0.89807698]
[1757520133546,0.17674882,113890.0,113880.0,0.89807698]
[1757520134396,0.00114078,113890.0,113880.0,0.89807698]
[1757520135941,0.00114078,113890.0,113880.0,1.29807698]
[1757520136592,0.00114078,113890.0,113880.0,1.15091698]
[1757520136803,0.00114078,113890.0,113880.0,1.29803698]
[1757520137438,0.00014078,113890.0,113880.0,1.29803698]
[1757520137873,0.00014078,113890.0,113880.0,1.15091698]
[1757520138300,0.00014078,113890.0,113880.0,1.29799698]
[1757520138508,0.00014078,113890.0,113880.0,1.29899698]
[1757520139160,0.00014078,113890.0,113880.0,1.15191698]
[1757520139375,0.00014078,113890.0,113880.0,1.29899698]
[1757520140565,0.00014078,113890.0,113880.0,1.29895698]
[1757520141756,0.00014078,113890.0,113880.0,1.15191698]
[1757520141967,0.00014078,113890.0,113880.0,1.29895698]
[1757520142449,0.17574882,113890.0,113880.0,1.15191698]
[1757520142570,0.17574882,113890.0,113880.0,1.29891698]
[1757520142787,0.17574882,113890.0,113880.0,1.29895698]
[1757520142991,0.17574882,113890.0,113880.0,1.15191698]
[1757520143461,0.17574882,113890.0,113880.0,1.29895698]
[1757520143688,0.17574882,113890.0,113880.0,1.15191698]
[1757520143931,0.17574882,113890.0,113880.0,1.29895698]
[1757520144437,0.00014078,113890.0,113880.0,1.29895698]
[1757520147147,0.17574882,113890.0,113880.0,1.29895698]
[1757520147569,0.00014078,113890.0,113880.0,1.29895698]
[1757520148414,0.17574882,113890.0,113880.0,1.29895698]
[1757520148655,0.00014078,113890.0,113880.0,1.29895698]
[1757520148857,0.17574882,113890.0,113880.0,1.29895698]
[1757520149744,0.00014078,113890.0,113880.0,1.29895698]
[1757520150050,0.17574882,113890.0,113880.0,1.29895698]
[1757520150596,0.00014078,113890.0,113880.0,1.29895698]
[1757520150959,0.17574882,113890.0,113880.0,1.29895698]
[1757520160227,0.00014078,113890.0,113880.0,1.29895698]
[1757520160832,0.17574882,113890.0,113880.0,1.29895698]
[1757520163086,0.36993424,113890.0,113880.0,1.09682352]
[1757520163327,0.37194424,113890.0,113880.0,1.09682352]
[1757520164113,0.37194424,113890.0,113880.0,1.09995352]
[1757520165015,0.36993424,113890.0,113880.0,1.09995352]
[1757520165442,0.36993424,113890.0,113880.0,1.12354352]
[1757520167143,0.37194424,113890.0,113880.0,0.72041352]
[1757520167367,0.37514424,113890.0,113880.0,0.65298352]
[1757520167591,0.37514424,113890.0,113880.0,0.45298352]
[1757520168068,0.37514424,113890.0,113880.0,0.21846]
[1757520168297,0.56932966,113890.0,113880.0,0.36546]
[1757520168519,0.93445624,113890.0,113880.0,0.06846]
[1757520168959,0.93445624,113890.0,113880.0,0.21546]
[1757520169156,0.93445624,113890.0,113880.0,0.1481]
[1757520169370,0.93445624,113890.0,113880.0,0.1471]
[1757520169585,0.93455624,113890.0,113880.0,0.1471]
[1757520169801,0.93455624,113890.0,113880.0,0.1481]
[1757520170523,1.02208742,113890.0,113880.0,0.148]
[1757520171148,1.02208742,113890.0,113880.0,0.147]
[1757520171149,1.08782455,113890.0,113880.0,0.147]
[1757520171356,1.08882455,113890.0,113880.0,0.147]
[1757520171978,1.28300997,113890.0,113880.0,0.147]
[1757520172184,1.08882455,113890.0,113880.0,0.147]
[1757520172797,1.28300997,113890.0,113880.0,0.147]
[1757520173048,0.20075004,113880.0,113870.0,0.0001]
[1757520173337,0.7833063,113880.0,113870.0,0.1471]
[1757520173586,0.79747498,113880.0,113870.0,0.1471]
[1757520173805,0.82393242,113880.0,113870.0,0.1471]
[1757520174649,0.82593242,113880.0,113870.0,0.1481]
[1757520175157,0.82593242,113880.0,113870.0,0.1471]
[1757520177008,0.82593242,113880.0,113870.0,0.147]
[1757520178645,0.54076546,113870.0,113860.0,0.0675]
[1757520178848,0.9321863,113870.0,113860.0,0.21454]
[1757520179120,0.9341963,113870.0,113860.0,0.21454]
[1757520180213,0.9341963,113870.0,113860.0,0.0001]
[1757520180214,0.9342963,113870.0,113860.0,0.0001]
[1757520180491,0.9342963,113870.0,113860.0,0.14714]
[1757520180707,0.96165539,113870.0,113860.0,0.14714]
[1757520181145,1.04918657,113870.0,113860.0,0.14714]
[1757520181799,1.39040433,113870.0,113860.0,0.0001]
[1757520182054,0.54078089,113860.0,113850.0,0.14714]
[1757520182263,1.12333715,113860.0,113850.0,0.14714]
[1757520182473,1.12839715,113860.0,113850.0,0.14714]
[1757520182796,1.15475872,113860.0,113850.0,0.14714]
[1757520183016,1.15485872,113860.0,113850.0,0.14714]
[1757520183413,1.2423899,113860.0,113850.0,0.14714]
[1757520183827,1.15485872,113860.0,113850.0,0.14714]
[1757520184030,1.16372347,113860.0,113850.0,0.14714]
[1757520184506,0.96953805,113860.0,113850.0,0.14714]
[1757520186047,1.03678737,113860.0,113850.0,0.14714]
[1757520186263,0.17575431,113860.0,113850.0,0.15447587]
[1757520186483,0.36993973,113860.0,113850.0,0.26635939]
[1757520186698,0.36993973,113860.0,113850.0,0.32841688]
[1757520186918,0.37194973,113860.0,113850.0,0.32841688]
[1757520187136,0.37184973,113860.0,113850.0,0.32841688]
[1757520187371,0.37184973,113860.0,113850.0,0.46416352]
[1757520187589,0.56908515,113860.0,113850.0,0.28762352]
[1757520187818,0.56908515,113860.0,113850.0,0.43466352]
[1757520188916,0.56908515,113860.0,113850.0,0.43668352]
[1757520188917,0.56603515,113860.0,113850.0,0.43668352]
[1757520189383,0.56908515,113860.0,113850.0,0.43466352]
[1757520191807,0.18071431,113860.0,113850.0,0.43466352]
[1757520192103,0.56908515,113860.0,113850.0,0.43466352]
[1757520192825,0.17766431,113860.0,113850.0,0.43466352]
[1757520193040,0.56823305,113860.0,113850.0,0.43466352]
[1757520193254,0.56603515,113860.0,113850.0,0.43466352]
[1757520193479,0.37489973,113860.0,113850.0,0.43466352]
[1757520193694,0.56908515,113860.0,113850.0,0.43466352]
[1757520195458,0.56603515,113860.0,113850.0,0.43466352]
[1757520195717,0.56603515,113860.0,113850.0,0.44527315]
[1757520195903,0.56908515,113860.0,113850.0,0.44527315]
[1757520196141,0.56603515,113860.0,113850.0,0.44527315]
[1757520196573,0.36983973,113860.0,113850.0,0.47477315]
[1757520197024,0.36983973,113860.0,113850.0,0.65044289]
[1757520197220,0.52463461,113870.0,113860.0,0.15]
[1757520197221,0.3699243,113870.0,113860.0,0.15]
[1757520197491,0.17573888,113870.0,113860.0,0.44267783]
[1757520197698,0.3699243,113870.0,113860.0,0.44267783]
[1757520197918,0.3698243,113870.0,113860.0,0.44267783]
[1757520198140,0.17563888,113870.0,113860.0,0.44267783]
[1757520198817,0.17663888,113870.0,113860.0,0.47034466]
[1757520199504,0.001,113870.0,113860.0,0.47034466]
[1757520199987,0.001,113870.0,113860.0,0.47044466]
[1757520200201,0.001,113870.0,113860.0,0.87044466]
[1757520200430,0.17663888,113870.0,113860.0,0.87044466]
[1757520200895,0.17663888,113870.0,113860.0,0.84195035]
[1757520201113,0.3708243,113870.0,113860.0,1.01760466]
[1757520201992,0.3708243,113870.0,113860.0,0.69479035]
[1757520202232,0.3708243,113870.0,113860.0,0.84195035]
[1757520202442,0.3708243,113870.0,113860.0,1.01760466]
[1757520202883,0.3708243,113870.0,113860.0,0.84195035]
[1757520203097,0.3708243,113870.0,113860.0,1.01760466]
[1757520203322,0.3708243,113870.0,113860.0,0.69479035]
[1757520203575,0.3708243,113870.0,113860.0,0.84195035]
[1757520203795,0.3728343,113870.0,113860.0,0.66529035]
[1757520204015,0.3728343,113870.0,113860.0,0.38474352]
[1757520204466,0.3728343,113870.0,113860.0,0.78976352]
[1757520204676,0.3708243,113870.0,113860.0,0.78976352]
[1757520204843,0.3708243,113870.0,113860.0,0.81254352]
[1757520205684,0.3729843,113870.0,113860.0,0.29722]
[1757520205872,0.3729843,113870.0,113860.0,0.30224]
[1757520207244,0.3729843,113870.0,113860.0,0.29921]
[1757520207471,0.3729843,113870.0,113860.0,0.29718]
[1757520207724,0.3759543,113870.0,113860.0,0.1501]
[1757520207950,0.3759543,113870.0,113860.0,0.29722]
[1757520207951,0.57013972,113870.0,113860.0,0.29722]
[1757520208596,0.3759543,113870.0,113860.0,0.29722]
[1757520210460,0.3729843,113870.0,113860.0,0.30224]
[1757520210900,0.3759543,113870.0,113860.0,0.29742]
[1757520211359,0.18176888,113870.0,113860.0,0.29742]
[1757520211791,0.3759543,113870.0,113860.0,0.29742]
[1757520212410,0.31132226,113870.0,113860.0,0.29742]
[1757520212617,0.31132226,113870.0,113860.0,0.1501]
[1757520212828,0.31132226,113870.0,113860.0,0.29758]
[1757520214643,0.18176888,113870.0,113860.0,0.29758]
[1757520214822,0.31132226,113870.0,113860.0,0.29758]
[1757520215065,0.18176888,113870.0,113860.0,0.29758]
[1757520215248,0.31132226,113870.0,113860.0,0.29758]
[1757520215734,0.30835226,113870.0,113860.0,0.29758]
[1757520215960,0.31132226,113870.0,113860.0,0.29758]
[1757520216972,0.31132226,113870.0,113860.0,0.36498]
[1757520217674,0.31132226,113870.0,113860.0,0.44363258]
[1757520218554,0.31132226,113870.0,113860.0,0.2175]
[1757520218770,0.44087564,113870.0,113860.0,0.36498]
[1757520220263,0.78087564,113870.0,113860.0,0.21498]
[1757520220882,0.78097564,113870.0,113860.0,0.21498]
[1757520221497,0.78097564,113870.0,113860.0,0.2151]
[1757520222249,0.52186888,113870.0,113860.0,0.2151]
[1757520222447,0.65142226,113870.0,113860.0,0.2151]
[1757520226246,0.78097564,113870.0,113860.0,0.2151]
[1757520228240,0.52186888,113870.0,113860.0,0.2151]
[1757520228463,0.78097564,113870.0,113860.0,0.0675]
[1757520228683,0.78097564,113870.0,113860.0,0.21546]
[1757520228850,0.78097564,113870.0,113860.0,0.0675]
[1757520229187,0.51565431,113860.0,113850.0,0.0001]
[1757520229388,0.79988765,113860.0,113850.0,1e-08]
[1757520229545,0.17566974,113850.0,113840.0,0.4174]
[1757520229744,0.18083764,113850.0,113840.0,0.5654]
[1757520229971,0.31255102,113850.0,113840.0,0.5654]
[1757520230202,0.31045312,113850.0,113840.0,0.5654]
[1757520230871,0.31050002,113850.0,113840.0,0.5654]
[1757520231247,0.31050002,113850.0,113840.0,0.5664]
[1757520231925,0.17797664,113850.0,113840.0,0.56839]
[1757520232132,0.30972792,113850.0,113840.0,0.5664]
[1757520232327,0.31050002,113850.0,113840.0,0.5674]
[1757520232976,0.31050002,113850.0,113840.0,0.7674]
[1757520234096,0.18094664,113850.0,113840.0,0.7674]
[1757520234493,0.31050002,113850.0,113840.0,0.7674]
[1757520235134,0.18094664,113850.0,113840.0,0.7674]
[1757520235350,0.31050002,113850.0,113840.0,0.7674]
[1757520235776,0.30753002,113850.0,113840.0,0.7674]
[1757520236405,0.17797664,113850.0,113840.0,0.7674]
[1757520236608,0.30972792,113850.0,113840.0,0.7674]
[1757520236815,0.30753002,113850.0,113840.0,0.7674]
[1757520237862,0.30753002,113850.0,113840.0,0.7694]
[1757520238101,0.17797664,113850.0,113840.0,0.77252]
[1757520238301,0.17581664,113850.0,113840.0,0.96137352]
[1757520238513,0.17581664,113850.0,113840.0,1.13705869]
[1757520238742,0.17581664,113850.0,113840.0,0.96137352]
[1757520239397,0.17581664,113850.0,113840.0,1.13705869]
[1757520239603,0.17581664,113850.0,113840.0,0.96137352]
[1757520239959,0.17581664,113850.0,113840.0,1.13705869]
[1757520240606,0.17581664,113850.0,113840.0,1.53705869]
[1757520240811,0.17581664,113850.0,113840.0,1.53715869]
[1757520241019,0.17581664,113850.0,113840.0,1.36147352]
[1757520241214,0.30537002,113850.0,113840.0,1.36159352]
[1757520241821,0.30537002,113850.0,113840.0,0.96159352]
[1757520242282,0.30537002,113850.0,113840.0,1.36159352]
[1757520242902,0.17581664,113850.0,113840.0,1.53727869]
[1757520244152,0.17581664,113850.0,113840.0,1.13727869]
[1757520244569,0.30537002,113850.0,113840.0,1.21347352]
[1757520244807,0.30744002,113850.0,113840.0,1.28472352]
[1757520245029,0.30744002,113850.0,113840.0,1.28508352]
[1757520246106,0.30744002,113850.0,113840.0,0.88508352]
[1757520246317,0.30744002,113850.0,113840.0,0.88196352]
[1757520246537,0.17788664,113850.0,113840.0,0.85558352]
[1757520246746,0.30744002,113850.0,113840.0,0.9481947]
[1757520247529,0.30744002,113850.0,113840.0,0.7996747]
[1757520247730,0.30744002,113850.0,113840.0,0.85554352]
[1757520248156,0.30744002,113850.0,113840.0,0.86066352]
[1757520250600,0.17581664,113850.0,113840.0,0.86066352]
[1757520250801,0.30537002,113850.0,113840.0,0.86066352]
[1757520252013,0.17581664,113850.0,113840.0,0.86066352]
[1757520252204,0.17788664,113850.0,113840.0,0.86066352]
[1757520252411,0.17788664,113850.0,113840.0,0.9481947]
[1757520252781,0.17581664,113850.0,113840.0,0.9481947]
[1757520253196,0.17788664,113850.0,113840.0,0.7996747]
[1757520253390,0.17788664,113850.0,113840.0,0.9480347]
[1757520254790,0.15756995,113850.0,113840.0,0.9480347]
[1757520255017,0.15756995,113850.0,113840.0,0.9724147]
[1757520255457,0.15756995,113850.0,113840.0,0.8209347]
[1757520255458,0.15963995,113850.0,113840.0,0.8209347]
[1757520255660,0.15963995,113850.0,113840.0,0.7965547]
[1757520255870,0.15963995,113850.0,113840.0,0.7428747]
[1757520256490,0.15963995,113850.0,113840.0,0.7448747]
[1757520257841,0.29460123,113850.0,113840.0,0.2195]
[1757520258049,0.29240333,113850.0,113840.0,0.36786]
[1757520258264,0.31876399,113850.0,113840.0,0.36786]
[1757520258697,0.31886399,113850.0,113840.0,0.36786]
[1757520259752,0.18931061,113850.0,113840.0,0.36786]
[1757520259931,0.31886399,113850.0,113840.0,0.36786]
[1757520261904,0.31886399,113850.0,113840.0,0.36776]
[1757520262783,0.18931061,113850.0,113840.0,0.36776]
[1757520263069,0.31886399,113850.0,113840.0,0.36776]
[1757520266841,0.18931061,113850.0,113840.0,0.36776]
[1757520267207,0.31886399,113850.0,113840.0,0.36776]
[1757520271259,0.31886399,113850.0,113840.0,0.2194]
[1757520271484,0.34399057,113850.0,113840.0,0.36768]
[1757520273477,0.40994179,113850.0,113840.0,0.36768]
[1757520274546,0.47479558,113850.0,113840.0,0.36768]
[1757520274779,0.28038841,113850.0,113840.0,0.36768]
[1757520274994,0.47479558,113850.0,113840.0,0.36768]
[1757520282229,0.47479558,113850.0,113840.0,0.2194]
[1757520282469,0.47479558,113850.0,113840.0,0.36752]
[1757520282690,0.28038841,113850.0,113840.0,0.36752]
[1757520282903,0.47479558,113850.0,113840.0,0.36752]
[1757520285862,0.28038841,113850.0,113840.0,0.36752]
[1757520286106,0.47479558,113850.0,113840.0,0.36752]
[1757520287477,0.66920275,113850.0,113840.0,0.36752]
[1757520288319,0.47479558,113850.0,113840.0,0.36752]
[1757520293121,1.09673393,113850.0,113840.0,0.002]
[1757520293335,1.00920275,113850.0,113840.0,0.002]
[1757520294927,1.00920275,113850.0,113840.0,0.001]
[1757520295790,1.00920275,113850.0,113840.0,0.002]
[1757520296014,0.54081175,113840.0,113830.0,0.14792]
[1757520296260,0.92962609,113840.0,113830.0,0.14792]
[1757520296491,0.93465609,113840.0,113830.0,0.14792]
[1757520296938,0.96102039,113840.0,113830.0,0.14792]
[1757520297143,0.76359322,113840.0,113830.0,0.14792]
[1757520297360,0.76369322,113840.0,113830.0,0.14792]
[1757520297580,0.96112039,113840.0,113830.0,0.14792]
[1757520301378,0.57230605,113840.0,113830.0,0.14792]
[1757520301636,0.96112039,113840.0,113830.0,0.14792]
[1757520302305,0.1757006,113830.0,113820.0,0.61754]
[1757520302431,0.37230567,113830.0,113820.0,0.91580721]
[1757520302636,0.37211777,113830.0,113820.0,0.92102721]
[1757520303143,0.39848207,113830.0,113820.0,0.92102721]
[1757520303360,0.39848207,113830.0,113820.0,0.91791721]
[1757520303570,0.39848207,113830.0,113820.0,0.91891721]
[1757520303684,0.39848207,113830.0,113820.0,0.91680721]
[1757520304130,0.39848207,113830.0,113820.0,0.91676721]
[1757520304327,0.2040749,113830.0,113820.0,0.91676721]
[1757520304544,0.39848207,113830.0,113820.0,0.91676721]
[1757520304742,0.39848207,113830.0,113820.0,0.91887721]
[1757520304956,0.40737391,113830.0,113820.0,0.91887721]
[1757520305172,0.40737391,113830.0,113820.0,0.91676721]
[1757520306084,0.40737391,113830.0,113820.0,0.91876721]
[1757520306533,0.41039391,113830.0,113820.0,0.77096721]
[1757520306752,0.41039391,113830.0,113820.0,0.91872721]
[1757520306949,0.40737391,113830.0,113820.0,0.91872721]
[1757520308442,0.40737391,113830.0,113820.0,0.92083721]
[1757520309279,0.39848207,113830.0,113820.0,0.92083721]
[1757520309668,0.39848207,113830.0,113820.0,0.92394721]
[1757520310237,0.39848207,113830.0,113820.0,0.91872721]
[1757520310444,0.2020649,113830.0,113820.0,0.92394721]
[1757520310667,0.39848207,113830.0,113820.0,0.92394721]
[1757520311524,0.39647207,113830.0,113820.0,0.92394721]
[1757520311760,0.39647207,113830.0,113820.0,0.94868721]
[1757520311927,0.39848207,113830.0,113820.0,0.91872721]
[1757520312315,0.2040749,113830.0,113820.0,0.92394721]
[1757520312510,0.39848207,113830.0,113820.0,0.92394721]
[1757520313248,0.2040749,113830.0,113820.0,0.91872721]
[1757520313682,0.39848207,113830.0,113820.0,0.91872721]
[1757520314572,0.39848207,113830.0,113820.0,0.92083721]
[1757520314791,0.39848207,113830.0,113820.0,0.91872721]
[1757520315600,0.39848207,113830.0,113820.0,0.77096721]
[1757520315836,0.39848207,113830.0,113820.0,0.91872721]
[1757520316444,0.2040749,113830.0,113820.0,0.91872721]
[1757520316648,0.2040749,113830.0,113820.0,0.92083721]
[1757520316861,0.39848207,113830.0,113820.0,0.92083721]
[1757520317344,0.2020649,113830.0,113820.0,0.92394721]
[1757520317544,0.39848207,113830.0,113820.0,0.92394721]
[1757520319483,0.39647207,113830.0,113820.0,0.92394721]
[1757520319741,0.1757006,113830.0,113820.0,0.94868721]
[1757520320665,0.1757006,113830.0,113820.0,1.12440325]
[1757520323107,0.17578517,113840.0,113830.0,0.1757006]
[1757520323335,0.17578517,113840.0,113830.0,0.53067155]
[1757520323552,0.17578517,113840.0,113830.0,0.5284753]
[1757520323807,0.17568517,113840.0,113830.0,0.3807153]
[1757520324025,0.17568517,113840.0,113830.0,0.3528147]
[1757520324217,0.37009234,113840.0,113830.0,0.3528147]
[1757520324436,0.17568517,113840.0,113830.0,0.3528147]
[1757520324747,0.17568517,113840.0,113830.0,0.2050147]
[1757520324964,0.17568517,113840.0,113830.0,0.3528147]
[1757520325177,0.17568517,113840.0,113830.0,0.5285153]
[1757520325398,0.17568517,113840.0,113830.0,0.3528147]
[1757520325630,0.37434024,113840.0,113830.0,0.1750547]
[1757520325890,0.37214234,113840.0,113830.0,0.3229147]
[1757520326153,0.17773517,113840.0,113830.0,0.3229147]
[1757520326523,0.37229024,113840.0,113830.0,0.3279247]
[1757520326783,0.17568517,113840.0,113830.0,0.3514147]
[1757520327041,0.17788307,113840.0,113830.0,0.3514147]
[1757520328626,0.17568517,113840.0,113830.0,0.5271153]
[1757520329813,0.17568517,113840.0,113830.0,0.5270753]
[1757520332808,0.17568517,113840.0,113830.0,0.3793553]
[1757520333078,0.17568517,113840.0,113830.0,0.5270353]
[1757520337990,0.17568517,113840.0,113830.0,0.5271153]
[1757520339923,0.17568517,113840.0,113830.0,0.9271153]
[1757520340124,0.17568517,113840.0,113830.0,0.7793553]
[1757520340351,0.17568517,113840.0,113830.0,0.6036547]
[1757520340554,0.17568517,113840.0,113830.0,0.7513747]
[1757520340972,0.17773517,113840.0,113830.0,0.7513747]
[1757520341188,0.17773517,113840.0,113830.0,0.1751547]
[1757520341399,0.30951321,113840.0,113830.0,0.3751547]
[1757520341637,0.30731531,113840.0,113830.0,0.23534352]
[1757520341845,0.31030531,113840.0,113830.0,0.23534352]
[1757520342056,0.31030531,113840.0,113830.0,0.23538352]
[1757520342268,0.31030531,113840.0,113830.0,0.0001]
[1757520342467,0.77988545,113840.0,113830.0,0.24786]
[1757520342696,0.67666824,113840.0,113830.0,0.24786]
[1757520342929,0.67676824,113840.0,113830.0,0.24786]
[1757520343348,0.80634838,113840.0,113830.0,0.1001]
[1757520343630,0.80634838,113840.0,113830.0,0.24782]
[1757520344066,0.67676824,113840.0,113830.0,0.24782]
[1757520344926,0.67676824,113840.0,113830.0,0.24772]
[1757520345566,0.67676824,113840.0,113830.0,0.24788]
[1757520345764,0.80634838,113840.0,113830.0,0.24788]
[1757520345962,0.80634838,113840.0,113830.0,0.28770376]
[1757520348282,0.80634838,113840.0,113830.0,0.24788]
[1757520355497,0.5441981,113840.0,113830.0,0.24788]
[1757520355731,0.67377824,113840.0,113830.0,0.24788]
[1757520357159,0.5441981,113840.0,113830.0,0.24788]
[1757520357346,0.67377824,113840.0,113830.0,0.24788]
[1757520357753,0.67377824,113840.0,113830.0,0.28865414]
[1757520358074,0.67377824,113840.0,113830.0,0.24788]
[1757520358313,0.5441981,113840.0,113830.0,0.25298]
[1757520358519,0.67377824,113840.0,113830.0,0.25298]
[1757520358926,0.67377824,113840.0,113830.0,0.24988]
[1757520359177,0.67680824,113840.0,113830.0,0.1]
[1757520359404,0.5472281,113840.0,113830.0,0.24772]
[1757520359648,0.80638838,113840.0,113830.0,0.24772]
[1757520359887,0.67680824,113840.0,113830.0,0.24772]
[1757520360102,0.67680824,113840.0,113830.0,0.26292714]
[1757520361461,0.67680824,113840.0,113830.0,0.24772]
[1757520364898,0.5441981,113840.0,113830.0,0.24772]
[1757520365113,0.67377824,113840.0,113830.0,0.24772]
[1757520365761,0.5441981,113840.0,113830.0,0.24972]
[1757520365984,0.67680824,113840.0,113830.0,0.1]
[1757520366221,0.67680824,113840.0,113830.0,0.24776]
[1757520366434,0.67377824,113840.0,113830.0,0.24776]
[1757520367596,0.67377824,113840.0,113830.0,0.32417306]
[1757520368382,0.67377824,113840.0,113830.0,0.24776]
[1757520372386,0.5441981,113840.0,113830.0,0.25286]
[1757520372554,0.67377824,113840.0,113830.0,0.25286]
[1757520372762,0.67377824,113840.0,113830.0,0.24976]
[1757520373422,0.67377824,113840.0,113830.0,0.24776]
[1757520373775,0.67377824,113840.0,113830.0,0.64776]
[1757520374393,0.67377824,113840.0,113830.0,0.24776]
[1757520374598,0.80638838,113840.0,113830.0,0.1]
[1757520374824,0.5472281,113840.0,113830.0,0.24768]
[1757520375043,0.80638838,113840.0,113830.0,0.24768]
[1757520375856,0.5472281,113840.0,113830.0,0.24768]
[1757520376308,0.80638838,113840.0,113830.0,0.1]
[1757520376529,0.80638838,113840.0,113830.0,0.24772]
[1757520376742,0.67680824,113840.0,113830.0,0.24772]
[1757520377369,0.67680824,113840.0,113830.0,0.24677411]
[1757520378051,0.67680824,113840.0,113830.0,0.24877411]
[1757520378052,0.5441981,113840.0,113830.0,0.24877411]
[1757520378256,0.67377824,113840.0,113830.0,0.25187411]
[1757520378458,0.5441981,113840.0,113830.0,0.24677411]
[1757520378668,0.67377824,113840.0,113830.0,0.24677411]
[1757520380788,0.67377824,113840.0,113830.0,0.09905411]
[1757520381020,0.5441981,113840.0,113830.0,0.24885411]
[1757520381240,0.67377824,113840.0,113830.0,0.24885411]
[1757520381856,0.67377824,113840.0,113830.0,0.24685411]
[1757520383174,0.5441981,113840.0,113830.0,0.24685411]
[1757520383377,0.67377824,113840.0,113830.0,0.24685411]
[1757520383594,0.5441981,113840.0,113830.0,0.24685411]
[1757520384107,0.67377824,113840.0,113830.0,0.24887411]
[1757520384534,0.5441981,113840.0,113830.0,0.24887411]
[1757520384746,0.67377824,113840.0,113830.0,0.24685411]
[1757520385405,0.5441981,113840.0,113830.0,0.24685411]
[1757520385548,0.67377824,113840.0,113830.0,0.24685411]
[1757520385776,0.5441981,113840.0,113830.0,0.25201411]
[1757520385959,0.67172824,113840.0,113830.0,0.25201411]
[1757520386162,0.5441481,113840.0,113830.0,0.25201411]